{"text_format":"1","workbook":"xlsx","n_sheets":7,"sheets":["Str_tytułowa","A-B","C","D-E","F(1)","F(2)","Combo"],"not_rendered":{"charts":0,"images":2,"macros":1,"external_links":0,"defined_names":98,"comments":2,"pivot_tables":0},"unopened":[],"bounds":{"document_bytes":16777216,"sheet_cells":100000,"rows_first":2000,"rows_last":500,"rows_between":2000,"halvings":0,"cell_chars":16384,"cell_head_chars":4096},"cells_cut":0,"cells_raw":0,"read":"whole","date_system":"1900"}

{"sheet":"Str_tytułowa","index":0,"n_rows":21,"n_cols":2,"rows_kept":21,"cut":false,"hidden":false,"merged":[[17,1,17,2],[18,1,18,2],[19,1,19,2],[20,1,20,2],[0,0,0,2],[13,1,13,2],[16,1,16,2],[14,1,14,2],[15,1,15,2]]}
["Załącznik nr 4 do Regulaminu konkursu – Karta oceny formalno-merytorycznej wniosku o dofinansowanie projektu konkursowego RPO WiM 2014-2020"]
[]
[]
[]
[]
[]
[]
[]
[null,"Karta oceny formalno-merytorycznej"]
[null,"wniosku o dofinansowanie projektu konkursowego "]
[null,"RPO WiM 2014-2020"]
[]
[]
["INSTYTUCJA PRZYJMUJĄCA WNIOSEK:"," Urząd Marszałkowski Województwa Warmińsko-Mazurskiego w Olsztynie"]
["NUMER KONKURSU:","RPWM.10.06.00-IZ.00-28-002/16"]
["NUMER WNIOSKU W LSI MAKS2","RPWM.10.06.00-28-xxxx/16"]
["NUMER KANCELARYJNY WNIOSKU:","…"]
["NAZWA WNIOSKODAWCY:","…"]
["TYTUŁ PROJEKTU:","…"]
["SUMA KONTROLNA WNIOSKU:","…"]
["OCENIAJĄCY:","…"]

{"sheet":"A-B","index":1,"n_rows":45,"n_cols":3,"rows_kept":45,"cut":false,"hidden":false,"merged":[[4,0,5,0],[4,1,4,2],[5,1,5,2],[28,0,29,0],[30,0,31,0],[24,0,25,0],[26,0,27,0],[20,0,21,0],[20,1,20,2],[21,1,21,2],[22,0,23,0],[22,1,22,2],[23,1,23,2],[10,0,11,0],[10,1,10,2],[11,1,11,2],[0,0,0,2],[1,0,1,2],[2,0,3,0],[2,1,2,2],[3,1,3,2],[6,0,7,0],[6,1,6,2],[7,1,7,2],[8,0,9,0],[8,1,8,2],[9,1,9,2],[27,1,27,2],[28,1,28,2],[29,1,29,2],[30,1,30,2],[24,1,24,2],[12,0,13,0],[12,1,12,2],[13,1,13,2],[14,0,15,0],[14,1,14,2],[15,1,15,2],[43,0,43,2],[44,0,44,2],[16,0,16,2],[17,0,17,2],[37,0,37,2],[36,0,36,2],[35,0,35,2],[34,0,34,2],[33,0,33,2],[32,0,32,2],[18,0,19,0],[18,1,18,2],[19,1,19,2],[31,1,31,2],[25,1,25,2],[26,1,26,2]]}
["CZĘŚĆ A"]
["WERYFIKACJA KRYTERIÓW FORMALNYCH"]
["A1.","Wnioskodawca zgodnie ze Szczegółowym Opisem Osi Priorytetowych RPO WiM 2014-2020 jest podmiotem uprawnionym do ubiegania się o dofinansowanie w ramach właściwego Działania/ Poddziałania RPO WiM 2014-2020."]
[]
["A2.","Wnioskodawca składa dopuszczalną w Regulaminie konkursu liczbę wniosków o dofinansowanie projektu (o ile dotyczy)."]
[]
["A3.","Wydatki w projekcie o wartości nieprzekraczającej wyrażonej w PLN równowartości kwoty 100 000 EUR1 wkładu publicznego2 są rozliczane uproszczonymi metodami, o których mowa w Wytycznych w zakresie kwalifikowalności wydatków w zakresie Europejskiego Funduszu Rozwoju Regionalnego, Europejskiego Funduszu Społecznego oraz Funduszu Spójności na lata 2014-2020."]
[]
["A4.","Wnioskodawca i Partnerzy (o ile dotyczy) nie podlega/ją wykluczeniu z możliwości ubiegania się o dofinansowanie ze środków UE na podstawie odrębnych przepisów."]
[]
["A5.","W przypadku projektu partnerskiego wniosek spełnia wymogi dotyczące utworzenia partnerstwa, o których mowa w art. 33 ustawy z dnia 11 lipca 2014 r. o zasadach realizacji programów w zakresie polityki spójności finansowanych w perspektywie 2014-2020 (Dz.U. z 2014 r. poz. 1146 z późn. zm.)."]
[]
["A6.","Okres realizacji projektu zawiera się w przedziale 1 stycznia 2014 – 31 grudnia 2023 roku."]
[]
["A7.","Wniosek oraz załączniki (o ile dotyczy) wypełniono w języku polskim."]
[]
["CZĘŚĆ B"]
["WERYFIKACJA KRYTERIÓW SPECYFICZNYCH OBLIGATORYJNYCH"]
["B1.","Wnioskodawca i partnerzy (jeśli dotyczy) na dzień złożenia wniosku posiada co najmniej dwuletnie doświadczenie w zakresie świadczenia usług rozwojowych dla MŚP z terenu województwa warmińsko – mazurskiego i/lub zrealizował projekty dla MŚP z terenu województwa warmińsko – mazurskiego w obszarze, którego dotyczy wniosek."]
[]
["B2.","Wnioskodawca zapewni w okresie realizacji projektu działalność biura obsługi klienta w podregionie, na terenie którego realizowane jest wsparcie oraz zapewni  mobilność świadczonych usług przez  konsultantów/rekruterów."]
[]
["B3.","Wnioskodawca w okresie realizacji projektu obejmie wsparciem minimum 100 MŚP oraz minimum 350 osób - pracowników firm."]
[]
["B4.","W projekcie w ramach wskazanej grupy docelowej wsparciem zostanie objętych minimum  31% osób w wieku 50 lat i więcej oraz minimum 48% osób o niskich kwalifikacjach."]
[]
["B5.","Projekt jest skierowany do przedsiębiorstw z sektora MŚP i ich  pracowników mających swoją siedzibę (filię, delegaturę, oddział czy inną prawnie dozwoloną formę organizacyjną działalności podmiotu) w  podregionie, na terenie którego realizowane jest wsparcie."]
[]
["B6.","Okres realizacji projektu wynosi 30 miesięcy od momentu podpisania umowy lub daty określonej w Regulaminie konkursu."]
[]
["B7.","Wnioskodawca, w odpowiedzi na konkurs z wydzieloną alokacją dla 3 obszarów realizacji projektów (podregionów), składa maksymalnie trzy wnioski o dofinansowanie projektu, po jednym na każdy podregion wskazany w Regulaminie konkursu."]
[]
["Czy projekt spełnia wszystkie kryteria formalne (część A) oraz kryteria specyficzne obligatoryjne (część B)?"]
[]
["Uzasadnienie odrzucenia wniosku za niespełnienie kryteriów formalnych i/lub kryteriów specyficznych obligatoryjnych."]
["…"]
[]
[]
[null,null,"                                                     …………………………………………………………………."]
[null,null,"                                                      (data i podpis Oceniającego)"]
[]
[]
[]
["1 Powyższa kwota jest przeliczana na PLN z wykorzystaniem miesięcznego obrachunkowego kursu wymiany stosowanego przez Komisję Europejską aktualnego na dzień ogłoszenia konkursu w przypadku projektów konkursowych albo na dzień wystosowania wezwania do złożenia wniosku o dofinansowanie projektu pozakonkursowego w przypadku projektów pozakonkursowych. Kurs jest publikowany na stronie internetowej: http://ec.europa.eu/budget/inforeuro/index.cfm?fuseaction=home&Language=en"]
["2 Zgodnie z art. 67 ust. 1 lit. c rozporządzenia Parlamentu Europejskiego i Rady (UE) nr 1303/2013 z dnia 17 grudnia 2013 r. ustanawiającego wspólne przepisy dotyczące Europejskiego Funduszu Rozwoju Regionalnego, Europejskiego Funduszu Społecznego, Funduszu Spójności, Europejskiego Funduszu Rolnego na rzecz Rozwoju Obszarów Wiejskich oraz Europejskiego Funduszu Morskiego i Rybackiego oraz ustanawiającego przepisy ogólne dotyczące Europejskiego Funduszu Rozwoju Regionalnego, Europejskiego Funduszu Społecznego, Funduszu Spójności i Europejskiego Funduszu Morskiego i Rybackiego oraz uchylającego rozporządzenie Rady (WE) nr 1083/2006 (Dz. Urz. UE z 20.12.2013, str. 320 L 347, z późn. zm.)."]

{"sheet":"C","index":2,"n_rows":55,"n_cols":3,"rows_kept":55,"cut":false,"hidden":false,"merged":[[20,1,21,1],[22,1,23,1],[32,0,33,0],[34,0,35,0],[6,1,6,2],[6,0,7,0],[7,1,7,2],[12,0,13,0],[14,1,15,1],[16,1,17,1],[18,1,19,1],[12,1,12,2],[13,1,13,2],[35,1,35,2],[24,1,24,2],[25,1,25,2],[26,1,26,2],[27,1,27,2],[34,1,34,2],[28,1,28,2],[29,1,29,2],[30,1,30,2],[31,1,31,2],[32,1,32,2],[33,1,33,2],[8,1,8,2],[8,0,9,0],[9,1,9,2],[10,1,10,2],[10,0,11,0],[11,1,11,2],[42,0,42,2],[36,1,36,2],[39,1,39,2],[47,0,47,2],[40,0,41,0],[40,1,40,2],[41,1,41,2],[44,0,44,2],[45,0,45,2],[53,0,53,2],[54,0,54,2],[0,0,0,2],[1,0,1,2],[2,1,2,2],[4,1,4,2],[5,1,5,2],[4,0,5,0],[3,1,3,2],[2,0,3,0],[46,0,46,2],[37,1,37,2],[38,1,38,2],[38,0,39,0],[36,0,37,0],[43,0,43,2]]}
["CZĘŚĆ C"]
["WERYFIKACJA KRYTERIÓW MERYTORYCZNYCH ZEROJEDYNKOWYCH"]
["C1.","Zgodność wniosku z zapisami właściwej Osi Priorytetowej RPO WiM 2014-2020 i SZOOP RPO WiM 2014-2020 w zakresie: typu projektu, wyboru grupy docelowej, minimalnej i maksymalnej wartości projektu oraz limitów i ograniczeń w realizacji projektu."]
[]
["C2.","Poziom cross-financingu nie przekracza dopuszczalnego poziomu określonego w SZOOP RPO WiM 2014-2020 dla danego Działania/ Poddziałania."]
[]
["C3.","Poziom środków trwałych (w tym cross-financing) jako % wydatków kwalifikowalnych nie przekracza dopuszczalnego poziomu określonego w SZOOP RPO WiM 2014-2020 dla danego Działania/ Poddziałania."]
[]
["C4.","Poziom wkładu własnego beneficjenta jako % wydatków kwalifikowalnych jest zgodny z poziomem określonym w SZOOP RPO WiM 2014-2020 dla danego Działania/ Poddziałania."]
[]
["C5.","Wartość kosztów pośrednich jest zgodna z limitami określonymi w Regulaminie konkursu."]
[]
["C6.","Zgodność projektu z zasadą równości szans kobiet i mężczyzn (w oparciu o standard minimum)."]
[null,"Standard minimum jest spełniony w przypadku uzyskania co najmniej 3 punktów za poniższe kryteria oceny."]
[null,"1.","We wniosku o dofinansowanie projektu podano informacje, które potwierdzają istnienie (albo brak istnienia) barier równościowych w obszarze tematycznym interwencji i/lub zasięgu oddziaływania projektu."]
[]
[null,"2.","Wniosek o dofinansowanie projektu zawiera działania odpowiadające na zidentyfikowane bariery równościowe w obszarze tematycznym interwencji i/lub zasięgu oddziaływania projektu."]
[]
[null,"3.","W przypadku stwierdzenia braku barier równościowych, wniosek o dofinansowanie projektu zawiera działania zapewniające przestrzeganie zasady równości szans kobiet i mężczyzn, tak aby na żadnym etapie realizacji projektu nie wystąpiły bariery równościowe."]
[]
[null,"4.","Wskaźnik (-i) realizacji projektu zostały podane w podziale na płeć i/lub został umieszczony opis tego, w jaki sposób rezultaty projektu przyczynią się do zmniejszenia barier równościowych istniejących w obszarze tematycznym interwencji i/lub zasięgu oddziaływania projektu."]
[]
[null,"5.","Wniosek o dofinansowanie projektu wskazuje jakie działania zostaną podjęte w celu zapewnienia równościowego zarządzania projektem."]
[]
[null,"Czy projekt należy do wyjątku, co do którego nie stosuje się standardu minimum?"]
[null,"Wyjątki, co do których nie stosuje się standardu minimum:"]
[null,"1)     profil działalności projektodawcy (ograniczenia statutowe),"]
[null,"2)     zamknięta rekrutacja – projekt obejmuje wsparciem (ze względu na swój zasięg oddziaływania) wszystkich pracowników/personel konkretnego podmiotu, wyodrębnionej organizacyjnie części danego podmiotu lub konkretnej grupy podmiotów wskazanych we wniosku o dofinansowanie projektu."]
[null,"W przypadku projektów, które należą do wyjątków, zaleca się również planowanie działania/działań zapewniających przestrzeganie zasady równości szans kobiet i mężczyzn."]
[]
[null,"Zgodność projektu z zasadą równości szans kobiet i mężczyzn (w oparciu o standard minimum).4"]
[]
["C7.","Zgodność projektu z zasadą zrównoważonego rozwoju."]
[]
["C8.","Zgodność projektu z zasadą równości szans i niedyskryminacji, w tym dostępności dla osób \nz niepełnosprawnościami."]
[]
["C9.","Projekt jest zgodny z właściwym prawodawstwem krajowym, w tym z ustawą z dnia 29 stycznia 2004 r. Prawo Zamówień Publicznych (Dz. U. z 2013 r. poz. 907, z późn. zm.)."]
[]
["C10.","Zgodność projektu z zasadami pomocy publicznej lub pomocy de minimis."]
[]
["C11.","Negocjacje zakończyły się wynikiem pozytywnym.\n\nNależy zweryfikować kryterium w przypadku gdy wniosek nie jest kierowany do negocjacji, tj. gdy: wniosek nie spełnia kryteriów ocenianych w części B, C lub D albo Oceniający nie wnosi żadnych uwag do wniosku."]
[]
["Czy projekt spełnia albo warunkowo spełnia wszystkie kryteria merytoryczne zerojedynkowe (część C)?"]
[]
["Uzasadnienie warunkowej oceny spełnienia kryteriów merytorycznych zerojedynkowych albo odrzucenia wniosku za niespełnienie kryteriów merytorycznych zerojedynkowych."]
["…"]
[]
[]
[null,null,"                                                     …………………………………………………………………."]
[null,null,"                                                      (data i podpis Oceniającego)"]
[]
[]
[]
["3 Ocena polegająca na stwierdzeniu „NIE – skierować wniosek do negocjacji” dotyczy kryteriów, w których definicji przewidziano możliwość warunkowej oceny."]
["4 Maksymalna liczba punktów do uzyskania wynosi 6 ponieważ kryteria 2 i 3 są alternatywne. Wniosek o dofinansowanie projektu nie musi uzyskać maksymalnej liczby punktów za kryteria standardu minimum (wymagane są co najmniej trzy punkty)."]

{"sheet":"D-E","index":3,"n_rows":187,"n_cols":7,"rows_kept":187,"cut":false,"hidden":false,"merged":[[70,0,70,1],[71,0,71,1],[54,0,54,1],[55,0,55,1],[21,0,21,1],[22,0,22,1],[30,6,31,6],[42,2,42,3],[43,2,43,3],[54,2,54,3],[55,2,55,3],[60,0,60,1],[61,0,61,1],[60,2,60,3],[61,2,61,3],[145,1,145,5],[146,1,146,5],[147,1,147,5],[148,1,148,5],[149,1,149,5],[150,1,150,5],[152,1,152,5],[153,1,153,5],[154,1,154,5],[124,1,124,5],[125,1,125,5],[126,1,126,5],[127,1,127,5],[128,1,128,5],[130,1,130,5],[131,1,131,5],[132,1,132,5],[133,1,133,5],[129,1,129,6],[76,0,76,5],[78,0,78,5],[93,1,93,5],[94,1,94,5],[122,1,122,6],[116,1,116,5],[117,1,117,5],[118,1,118,5],[119,1,119,5],[120,1,120,5],[121,1,121,5],[103,1,103,5],[104,1,104,5],[109,1,109,5],[107,1,107,5],[108,1,108,5],[110,1,110,5],[111,1,111,5],[112,1,112,5],[113,1,113,5],[114,1,114,5],[95,1,95,5],[96,1,96,5],[123,1,123,5],[71,2,71,5],[90,5,90,6],[91,1,91,4],[91,5,91,6],[79,0,79,6],[80,1,80,4],[80,5,80,6],[81,1,81,4],[81,5,81,6],[82,1,82,4],[82,5,82,6],[97,1,97,5],[98,1,98,5],[86,5,86,6],[87,1,87,4],[88,5,88,6],[89,1,89,4],[106,1,106,6],[99,1,99,5],[100,1,100,5],[101,1,101,5],[102,1,102,5],[30,4,31,4],[30,5,31,5],[49,2,49,3],[42,0,42,1],[167,0,167,3],[72,0,72,5],[87,5,87,6],[88,1,88,4],[89,5,89,6],[90,1,90,4],[155,1,155,5],[151,1,151,6],[115,1,115,6],[83,1,83,4],[83,5,83,6],[84,1,84,4],[84,5,84,6],[85,1,85,4],[85,5,85,6],[86,1,86,4],[179,0,179,6],[74,0,74,6],[75,0,75,6],[77,0,77,6],[45,2,45,3],[47,2,47,3],[105,0,105,6],[92,0,92,6],[178,0,178,6],[70,2,70,5],[177,0,177,6],[164,0,164,6],[171,0,171,6],[163,0,163,4],[170,0,170,3],[174,0,174,3],[162,0,162,4],[166,0,166,3],[176,0,176,3],[176,4,176,6],[161,0,161,4],[168,0,168,3],[26,2,26,3],[16,2,16,3],[28,2,28,3],[57,2,57,3],[59,2,59,3],[62,2,62,3],[52,2,52,3],[56,2,56,3],[18,2,18,3],[20,2,20,3],[50,2,50,3],[24,2,24,3],[44,2,44,3],[46,2,46,3],[21,2,21,3],[29,2,29,3],[186,0,186,6],[2,6,4,6],[15,2,15,3],[17,2,17,3],[19,2,19,3],[23,2,23,3],[27,2,27,3],[25,2,25,3],[29,0,29,1],[69,2,69,3],[67,2,67,3],[65,2,65,3],[63,2,63,3],[51,2,51,3],[53,2,53,3],[68,2,68,3],[64,2,64,3],[66,2,66,3],[58,2,58,3],[48,2,48,3],[0,0,0,6],[1,0,1,6],[2,2,2,3],[5,2,5,3],[7,2,7,3],[9,2,9,3],[11,2,11,3],[10,2,10,3],[12,2,12,3],[6,2,6,3],[8,2,8,3],[3,0,3,1],[13,0,13,1],[2,0,2,1],[3,2,3,3],[4,2,4,3],[13,2,13,3],[14,2,14,3],[175,0,175,3],[175,4,175,6],[156,1,156,6],[157,0,157,6],[174,4,174,6],[172,4,172,6],[173,4,173,6],[169,0,169,3],[172,0,172,3],[173,0,173,3],[165,0,165,3],[160,0,160,4],[158,0,158,4],[159,0,159,4],[143,1,143,5],[144,1,144,5],[140,1,140,6],[134,1,134,5],[135,1,135,5],[136,1,136,5],[137,1,137,5],[138,1,138,5],[139,1,139,5],[141,1,141,5],[142,1,142,5]]}
["CZĘŚĆ D"]
["WERYFIKACJA KRYTERIÓW MERYTORYCZNYCH PUNKTOWYCH"]
["Kryteria",null,"max/min \nliczba punktów ogółem oraz liczba punktów za poszczególne składowe kryteriów",null,"Liczba punktów przyznanych BEZWARUNKOWO","Liczba punktów przyznanych WARUNKOWO5 ","Uzasadnienie"]
["D1. Adekwatność doboru grupy docelowej do właściwego celu szczegółowego RPO WiM 2014-2020 oraz jakość diagnozy specyfiki tej grupy.",null,"20/12",null,{"$f":"SUM(E6:E12)","v":0},{"$f":"SUM(F6:F12)","v":0}]
[1,"Czy projekt zawiera analizę ryzyka?",null,null,"(ogółem pkt bezwarunkowe)","(ogółem pkt warunkowe)"]
["a)","opis istotnych cech uczestników (osób lub podmiotów), którzy zostaną objęci wsparciem w kontekście zdiagnozowanej sytuacji problemowej\n(pkt 3.1 WND)",{"$f":"IF(A5=1,Combo!B198,IF(A5=2,Combo!C198,\"Wybierz powyżej\"))","v":3}]
[]
["b)","opis potrzeb uczestników projektu w kontekście wsparcia, które ma być udzielane w ramach projektu \n(pkt 3.1 WND)",{"$f":"IF(A5=1,Combo!B199,IF(A5=2,Combo!C199,\"Wybierz powyżej\"))","v":2}]
[]
["c)","opis barier, na które napotykają uczestnicy projektu \n(pkt 3.1 WND)",{"$f":"IF(A5=1,Combo!B200,IF(A5=2,Combo!C200,\"Wybierz powyżej\"))","v":5}]
[]
["d)","opis sposobu rekrutacji uczestników projektu, w tym kryteriów rekrutacji i kwestii zapewnienia dostępności dla osób z niepełnosprawnościami \n(pkt 3.1 WND)",{"$f":"IF(A5=1,Combo!B201,IF(A5=2,Combo!C201,\"Wybierz powyżej\"))","v":10}]
[]
["D2. Zgodność projektu z właściwym celem szczegółowym Priorytetu Inwestycyjnego RPO WiM 2014-2020 oraz adekwatność doboru i opisu wskaźników, źródeł oraz sposobu ich pomiaru.",null,"10/6",null,{"$f":"SUM(E16:E20)","v":0},{"$f":"SUM(F16:F20)","v":0},"Uzasadnienie"]
[1,"Czy projekt zawiera analizę ryzyka?",null,null,"(ogółem pkt bezwarunkowe)","(ogółem pkt warunkowe)"]
["a)","wskazanie celu projektu \n(pkt 3.2 WND)",{"$f":"IF(A15=1,Combo!B208,IF(A15=2,Combo!C208,\"Wybierz powyżej\"))","v":2}]
[]
["b)","dobór i opis wskaźników realizacji celów (wskaźników rezultatu i produktu, w tym wskaźników programowych i specyficznych) \n(pkt 3.2 WND)",{"$f":"IF(A15=1,Combo!B209,IF(A15=2,Combo!C209,\"Wybierz powyżej\"))","v":5}]
[]
["c)","wskazanie źródeł i sposobów pomiaru wskaźników \n(pkt 3.2 WND)",{"$f":"IF(A15=1,Combo!B210,IF(A15=2,Combo!C210,\"Wybierz powyżej\"))","v":3}]
[]
["D3. Trafność opisanej analizy ryzyka nieosiągnięcia założeń projektu.",null,"10/6",null,{"$f":"SUM(E24:E28)","v":0},{"$f":"SUM(F24:F28)","v":0},"Uzasadnienie"]
[null,null,null,null,"(ogółem pkt bezwarunkowe)","(ogółem pkt warunkowe)"]
["a)","opis sytuacji, których wystąpienie utrudni lub uniemożliwi osiągnięcie wartości docelowej wskaźników rezultatu\n(pkt 3.3 WND)",3]
[]
["b)","opis sposobu identyfikacji wystąpienia takich sytuacji (zajścia ryzyka)\n(pkt 3.3 WND)",3]
[]
["c)","opis działań, które zostaną podjęte, aby zapobiec wystąpieniu ryzyka i jakie będą mogły zostać podjęte, aby zminimalizować skutki wystąpienia ryzyka\n(pkt 3.3 WND)",4]
[]
["D4. Spójność zadań przewidzianych do realizacji w ramach projektu oraz trafność doboru i opisu tych zadań.",null,"20/12",null,{"$f":"SUM(E33:E41)","v":0},{"$f":"SUM(F33:F41)","v":0},"Uzasadnienie"]
[5,"W ramach kryterium może wystąpić jeden z wariantów oceny:",9,null,"(ogółem pkt bezwarunkowe)","(ogółem pkt warunkowe)"]
[]
["a)","szczegółowy opis i uzasadnienie potrzeby realizacji zadań oraz racjonalność harmonogramu realizacji projektu \n(pkt 4.1 i 4.3 WND)",{"$f":"IF(A31=1,Combo!B222,IF(A31=2,Combo!C222,IF(A31=3,Combo!D222,IF(A31=4,Combo!E222,\"Wybierz powyżej\"))))","v":"Wybierz powyżej"},{"$f":"IF(A31=1,Combo!B223,IF(A31=2,Combo!C223,IF(A31=3,Combo!D223,IF(A31=4,Combo!E223,\"Wybierz powyżej\"))))","v":"Wybierz powyżej"}]
[]
["b)","przyporządkowanie wskaźników realizacji do właściwego zadania \n(pkt 4.1 WND)",{"$f":"IF(A31=1,Combo!B222,IF(A31=2,Combo!C222,IF(A31=3,Combo!D222,IF(A31=4,Combo!E222,\"Wybierz powyżej\"))))","v":"Wybierz powyżej"},{"$f":"IF(A31=1,Combo!B224,IF(A31=2,Combo!C224,IF(A31=3,Combo!D224,IF(A31=4,Combo!E224,\"Wybierz powyżej\"))))","v":"Wybierz powyżej"}]
[]
["c)","uzasadnienie wyboru Partnerów do realizacji poszczególnych zadań \n(o ile dotyczy) \n(pkt 4.1 WND)",{"$f":"IF(A31=1,Combo!B222,IF(A31=2,Combo!C222,IF(A31=3,Combo!D222,IF(A31=4,Combo!E222,\"Wybierz powyżej\"))))","v":"Wybierz powyżej"},{"$f":"IF(A31=1,Combo!B225,IF(A31=2,Combo!C225,IF(A31=3,Combo!D225,IF(A31=4,Combo!E225,\"Wybierz powyżej\"))))","v":"Wybierz powyżej"}]
[]
["d)","sposób, w jaki zostanie zachowana trwałość rezultatów projektu \n(o ile dotyczy)\n(pkt 4.2 WND)",{"$f":"IF(A31=1,Combo!B222,IF(A31=2,Combo!C222,IF(A31=3,Combo!D222,IF(A31=4,Combo!E222,\"Wybierz powyżej\"))))","v":"Wybierz powyżej"},{"$f":"IF(A31=1,Combo!B226,IF(A31=2,Combo!C226,IF(A31=3,Combo!D226,IF(A31=4,Combo!E226,\"Wybierz powyżej\"))))","v":"Wybierz powyżej"}]
[]
["e)","trafność doboru wskaźników (w tym ich wartości docelowej dla rozliczenia kwot ryczałtowych) i dokumentów potwierdzających ich wykonanie \n(o ile dotyczy)\n(pkt 4.4 WND)",{"$f":"IF(A31=1,Combo!B222,IF(A31=2,Combo!C222,IF(A31=3,Combo!D222,IF(A31=4,Combo!E222,\"Wybierz powyżej\"))))","v":"Wybierz powyżej"},{"$f":"IF(A31=1,Combo!B227,IF(A31=2,Combo!C227,IF(A31=3,Combo!D227,IF(A31=4,Combo!E227,\"Wybierz powyżej\"))))","v":"Wybierz powyżej"}]
[]
["D5. Adekwatność potencjału Wnioskodawcy i Partnerów (o ile dotyczy) oraz sposobu zarządzania projektem.",null,"10/6",null,{"$f":"SUM(E45:E53)","v":0},{"$f":"SUM(F45:F53)","v":0},"Uzasadnienie"]
[3,"W ramach kryterium może wystąpić jeden z wariantów oceny:",null,null,"(ogółem pkt bezwarunkowe)","(ogółem pkt warunkowe)"]
["a)","opis potencjału finansowego \n(pkt 4.5 WND)",{"$f":"IF(A44=1,Combo!B234,IF(A44=2,Combo!C234,\"Wybierz powyżej\"))","v":"Wybierz powyżej"}]
[]
["b)","opis posiadanego potencjału kadrowego oraz sposobu jego wykorzystania w ramach projektu\n(pkt 4.5 WND w zakresie kadry merytorycznej\npkt 4.7 WND w zakresie kadry zarządzającej)",{"$f":"IF(A44=1,Combo!B235,IF(A44=2,Combo!C235,\"Wybierz powyżej\"))","v":"Wybierz powyżej"}]
[]
["c)","opis posiadanego potencjału technicznego, w tym sprzętowego i warunków lokalowych\n(pkt 4.5 WND)",{"$f":"IF(A44=1,Combo!B236,IF(A44=2,Combo!C236,\"Wybierz powyżej\"))","v":"Wybierz powyżej"}]
[]
["d)","opis kadry zewnętrznej zaangażowanej do realizacji projektu\n(pkt 4.5 WND w zakresie kadry merytorycznej\npkt 4.7 WND w zakresie kadry zarządzającej)",{"$f":"IF(A44=1,Combo!B237,IF(A44=2,Combo!C237,\"Wybierz powyżej\"))","v":"Wybierz powyżej"}]
[]
["e)","opis struktury zarządzania projektem\n(pkt 4.7 WND)",{"$f":"IF(A44=1,Combo!B238,IF(A44=2,Combo!C238,\"Wybierz powyżej\"))","v":"Wybierz powyżej"}]
[]
["D6. Adekwatność doświadczenia Wnioskodawcy i Partnerów (o ile dotyczy)",null,"10/6",null,{"$f":"SUM(E57:E59)","v":0},{"$f":"SUM(F57:F59)","v":0},"Uzasadnienie"]
["do zakresu realizacji projektu oraz ich potencjał społeczny.",null,null,null,"(ogółem pkt bezwarunkowe)","(ogółem pkt warunkowe)"]
["a)","adekwatność doświadczenia Wnioskodawcy i Partnerów (o ile dotyczy) do zakresu realizacji projektu, w tym w zakresie tematycznym, jakiego dotyczy projekt, na rzecz grupy docelowej, do której skierowany będzie projekt oraz na określonym terytorium, którego będzie dotyczyć realizacja projektu\n(pkt 4.6 WND)",8]
[]
["b)","opis potencjału społecznego Wnioskodawcy i Partnerów \n(o ile dotyczy)\n(pkt 4.6 WND)",2]
[]
["D7. Prawidłowość budżetu projektu.",null,"20/12",null,{"$f":"SUM(E63:E69)","v":0},{"$f":"SUM(F63:F69)","v":0},"Uzasadnienie"]
[null,null,null,null,"(ogółem pkt bezwarunkowe)","(ogółem pkt warunkowe)"]
["a)","racjonalność i efektywność wydatków projektu (rozumiana jako relacja nakład/rezultat oraz rynkowość kosztów) oraz kwalifikowalność wydatków \n(część VI WND)",8]
[]
["b)","niezbędność wydatków do realizacji projektu i osiągania jego celów \n(część VI WND)",7]
[]
["c)","poprawność uzasadnień kosztów \n(o ile dotyczy) \n(pkt 6.1.6 WND)",3]
[]
["d)","techniczna poprawność wypełnienia budżetu projektu \n(część VI WND)",2]
[]
["Suma punktów",null,"Suma punktów przyznanych bezwarunkowo",null,null,null,"Suma punktów przyznanych warunkowo"]
[null,null,{"$f":"E4+E14+E22+E30+E43+E55+E61","v":0},null,null,null,{"$f":"F4+F14+F22+F30+F43+F55+F61","v":0}]
["Czy wniosek otrzymał wymagane minimum 60 punktów ogółem oraz minimum 60% punktów w każdym z kryteriów merytorycznych punktowych (D1, D2, D3, D4, D5, D6, D7)?"]
[]
["CZĘŚĆ E"]
["NEGOCJACJE"]
["Czy projekt został oceniony warunkowo i jest skierowany do negocjacji?"]
["ZAKRES NEGOCJACJI\nwypełnić jeżeli powyżej zaznaczono odpowiedź „TAK”"]
["Nazwa kryterium",null,null,null,null,null,"Co należy zmienić/wyjaśnić?"]
["KRYTERIA SPECYFICZNE OBLIGATORYJNE"]
["B1.","wpisać kryteria specyficzne obligatoryjne (jeśli dotyczy)",null,null,null,"\n"]
["B2.","wpisać kryteria specyficzne obligatoryjne (jeśli dotyczy)",null,null,null,null,"\n"]
["B3.","wpisać kryteria specyficzne obligatoryjne (jeśli dotyczy)",null,null,null,null,"\n"]
["B4.","wpisać kryteria specyficzne obligatoryjne (jeśli dotyczy)",null,null,null,null,"\n"]
["B5.","wpisać kryteria specyficzne obligatoryjne (jeśli dotyczy)",null,null,null,null,"\n"]
["B6.","wpisać kryteria specyficzne obligatoryjne (jeśli dotyczy)",null,null,null,null,"\n"]
["B7.","wpisać kryteria specyficzne obligatoryjne (jeśli dotyczy)",null,null,null,null,"\n"]
["B8.","wpisać kryteria specyficzne obligatoryjne (jeśli dotyczy)",null,null,null,null,"\n"]
["B9.","wpisać kryteria specyficzne obligatoryjne (jeśli dotyczy)",null,null,null,null,"\n"]
["B10.","wpisać kryteria specyficzne obligatoryjne (jeśli dotyczy)",null,null,null,null,"\n"]
["B11.","wpisać kryteria specyficzne obligatoryjne (jeśli dotyczy)",null,null,null,null,"\n"]
["B12.","wpisać kryteria specyficzne obligatoryjne (jeśli dotyczy)",null,null,null,null,"\n"]
["KRYTERIA MERYTORYCZNE ZEROJEDYNKOWE"]
["C2.","Poziom cross-financingu nie przekracza dopuszczalnego poziomu określonego w SZOOP RPO WiM 2014-2020 dla danego Działania/ Poddziałania.",null,null,null,null,"\n"]
[]
["C3.","Poziom środków trwałych (w tym cross-financing) jako % wydatków kwalifikowalnych nie przekracza dopuszczalnego poziomu określonego w SZOOP RPO WiM 2014-2020 dla danego Działania/ Poddziałania.",null,null,null,null,"\n\n"]
[]
["C4.","Poziom wkładu własnego beneficjenta jako % wydatków kwalifikowalnych jest zgodny z poziomem określonym w SZOOP RPO WiM 2014-2020 dla danego Działania/ Poddziałania.",null,null,null,null,"\n"]
[]
["C5.","Wartość kosztów pośrednich jest zgodna z limitami określonymi w Regulaminie konkursu."]
[]
["C9.","Projekt jest zgodny z właściwym prawodawstwem krajowym, w tym z ustawą z dnia 29 stycznia 2004 r. Prawo Zamówień Publicznych (Dz. U. z 2013 r. poz. 907, z późn. zm.).",null,null,null,null,"\n"]
[]
["C10.","Zgodność projektu z zasadami pomocy publicznej lub pomocy de minimis."]
[]
["KRYTERIA MERYTORYCZNE PUNKTOWE"]
["D1."," Adekwatność doboru grupy docelowej do właściwego celu szczegółowego RPO WiM 2014-2020 oraz jakość diagnozy specyfiki tej grupy."]
["a)","opis istotnych cech uczestników (osób lub podmiotów), którzy zostaną objęci wsparciem w kontekście zdiagnozowanej sytuacji problemowej",null,null,null,null,"\n"]
[]
["b)","opis potrzeb uczestników projektu w kontekście wsparcia, które ma być udzielane w ramach projektu",null,null,null,null,"\n"]
[]
["c)","opis barier, na które napotykają uczestnicy projektu"]
[]
["d)","opis sposobu rekrutacji uczestników projektu, w tym kryteriów rekrutacji i kwestii zapewnienia dostępności dla osób z niepełnosprawnościami",null,null,null,null,"\n"]
[]
["D2.","Zgodność projektu z właściwym celem szczegółowym Priorytetu Inwestycyjnego RPO WiM 2014-2020 oraz adekwatność doboru i opisu wskaźników, źródeł oraz sposobu ich pomiaru."]
["a)","wskazanie celu projektu"]
[]
["b)","dobór i opis wskaźników realizacji celów (wskaźników rezultatu i produktu, w tym wskaźników programowych i specyficznych)",null,null,null,null,"\n"]
[]
["c)","wskazanie źródeł i sposobów pomiaru wskaźników"]
[]
["D3.","Trafność opisanej analizy ryzyka nieosiągnięcia założeń projektu."]
["a)","opis sytuacji, których wystąpienie utrudni lub uniemożliwi osiągnięcie wartości docelowej wskaźników rezultatu",null,null,null,null,"\n"]
[]
["b)","opis sposobu identyfikacji wystąpienia takich sytuacji (zajścia ryzyka)"]
[]
["c)","opis działań, które zostaną podjęte, aby zapobiec wystąpieniu ryzyka i jakie będą mogły zostać podjęte, aby zminimalizować skutki wystąpienia ryzyka",null,null,null,null,"\n"]
[]
["D4.","Spójność zadań przewidzianych do realizacji w ramach projektu oraz trafność doboru i opisu tych zadań.",null,null,null,null,"\n"]
["a)","szczegółowy opis i uzasadnienie potrzeby realizacji zadań oraz racjonalność harmonogramu realizacji projektu ",null,null,null,null,"\n"]
[]
["b)","przyporządkowanie wskaźników realizacji do właściwego zadania "]
[]
["c)","uzasadnienie wyboru Partnerów do realizacji poszczególnych zadań (o ile dotyczy)"]
[]
["d)","sposób, w jaki zostanie zachowana trwałość rezultatów projektu (o ile dotyczy)"]
[]
["e)","trafność doboru wskaźników (w tym ich wartości docelowej dla rozliczenia kwot ryczałtowych) i dokumentów potwierdzających ich wykonanie (o ile dotyczy)",null,null,null,null,"\n"]
[]
["D5.","Adekwatność potencjału Wnioskodawcy i Partnerów (o ile dotyczy) oraz sposobu zarządzania projektem.",null,null,null,null,"\n"]
["a)","opis potencjału finansowego"]
[]
["b)","opis posiadanego potencjału kadrowego oraz sposobu jego wykorzystania w ramach projektu"]
[]
["c)","opis posiadanego potencjału technicznego, w tym sprzętowego i warunków lokalowych"]
[]
["d)","opis kadry zewnętrznej zaangażowanej do realizacji projektu"]
[]
["e)","opis struktury zarządzania projektem"]
[]
["D6.","Adekwatność doświadczenia Wnioskodawcy i Partnerów (o ile dotyczy) do zakresu realizacji projektu oraz ich potencjał społeczny.",null,null,null,null,"\n"]
["a)","adekwatność doświadczenia Wnioskodawcy i Partnerów (o ile dotyczy) do zakresu realizacji projektu, w tym w zakresie tematycznym, jakiego dotyczy projekt, na rzecz grupy docelowej, do której skierowany będzie projekt oraz na określonym terytorium, którego będzie dotyczyć realizacja projektu",null,null,null,null,"\n\n\n"]
[]
["b)","opis potencjału społecznego Wnioskodawcy i Partnerów (o ile dotyczy)"]
[]
["D7.","Prawidłowość budżetu projektu.",null,null,null,null,"\n"]
["Kwestionowane pozycje wydatków jako niekwalifikowalne lub zbędne"]
["Zadanie nr, Pozycja nr, Nazwa pozycji",null,null,null,null,"Wartość pozycji","Uzasadnienie"]
[]
[]
[]
[]
["SUMA",null,null,null,null,{"$f":"SUM(F160:F163)","v":0},"-"]
["Kwestionowane wysokości wydatków"]
["Zadanie nr, Pozycja nr, Nazwa pozycji",null,null,null,"Wartość pozycji","Proponowana wartość","Uzasadnienie"]
[]
[]
[]
[]
["SUMA",null,null,null,{"$f":"SUM(E167:E170)","v":0},{"$f":"SUM(F167:F170)","v":0},"-"]
["Kwestionowana poprawność uzasadnień kosztów"]
["Zadanie nr, Pozycja nr, Nazwa pozycji",null,null,null,"Uzasadnienie"]
[]
[]
[]
[]
["Kwestionowana techniczna poprawność wypełnienia budżetu projektu"]
["…"]
[]
[]
[null,null,null,null,null,null,"…………………………………………………………………."]
[null,null,null,null,null,null,"(data i podpis Oceniającego)"]
[]
[]
[]
["5 Kolumna: „Liczba punktów przyznanych WARUNKOWO” wypełniana jest wyłącznie gdy wniosek otrzymał minimum 60 punktów ogółem oraz minimum 60% punktów w każdym z kryteriów merytorycznych punktowych oraz kierowany jest do negocjacji. „Ogółem pkt warunkowe” to suma punktów przyznanych bezwarunkowo oraz punktów, które zostaną przyznane po poprawieniu wniosku w wyniku pozytywnie zakończonych negocjacji."]

{"sheet":"F(1)","index":4,"n_rows":21,"n_cols":2,"rows_kept":21,"cut":false,"hidden":false,"merged":[[18,1,18,2],[19,1,19,2],[20,1,20,2],[0,0,0,2],[13,1,13,2],[14,1,14,2],[15,1,15,2],[16,1,16,2],[17,1,17,2]]}
["Załącznik nr 4 do Regulaminu konkursu – Karta oceny formalno-merytorycznej wniosku o dofinansowanie projektu konkursowego RPO WiM 2014-2020"]
[]
[]
[]
[]
[]
[]
[]
[null,"Karta oceny formalno-merytorycznej"]
[null,"wniosku o dofinansowanie projektu konkursowego "]
[null,"RPO WiM 2014-2020"]
[null,"(po procesie negocjacji)"]
[]
["INSTYTUCJA PRZYJMUJĄCA WNIOSEK:"," Urząd Marszałkowski Województwa Warmińsko-Mazurskiego w Olsztynie"]
["NUMER KONKURSU:","RPWM.10.06.00-IZ.00-28-002/16"]
["NUMER WNIOSKU W LSI MAKS2","RPWM.10.06.00-28-xxxx/16"]
["NUMER KANCELARYJNY WNIOSKU:","…"]
["NAZWA WNIOSKODAWCY:","…"]
["TYTUŁ PROJEKTU:","…"]
["SUMA KONTROLNA WNIOSKU:","…"]
["OCENIAJĄCY:","…"]

{"sheet":"F(2)","index":5,"n_rows":18,"n_cols":7,"rows_kept":18,"cut":false,"hidden":false,"merged":[[17,0,17,6],[0,0,0,6],[1,0,1,6],[2,0,2,6],[3,0,3,6],[4,0,4,6],[5,0,5,6],[10,0,10,5],[12,5,12,6],[13,5,13,6],[6,0,6,6],[7,0,7,6],[8,0,8,6],[9,1,9,5]]}
["CZĘŚĆ F\nwypełnić po zakończonych negocjacjach"]
["KRYTERIUM MERYTORYCZNE ZEROJEDYNKOWE "]
["Negocjacje zakończyły się wynikiem pozytywnym6"]
[]
["Uzasadnienie oceny."]
["…"]
[]
["WYNIK OCENY PO PROCESIE NEGOCJACJI"]
["PODSUMOWANIE PUNKTACJI"]
[null,"ŁĄCZNA LICZBA PUNKTÓW UZYSKANYCH ZA KRYTERIA MERYTORYCZNE PUNKTOWE (OSTATECZNA LICZBA PUNKTÓW)"]
["OSTATECZNA KWOTA DOFINANSOWANIA",null,null,null,null,null,0]
[]
[null,null,null,null,null,"…………………………………………………………………."]
[null,null,null,null,null,"(data i podpis Oceniającego)"]
[]
[]
[]
["6 Kryterium będzie uznane za spełnione w przypadku wprowadzenia do wniosku wszystkich wymaganych zmian wskazanych przez oceniających w Kartach Oceny Formalno-Merytorycznej lub akceptacji  przez IOK stanowiska Wnioskodawcy."]

{"sheet":"Combo","index":6,"n_rows":260,"n_cols":25,"rows_kept":260,"cut":false,"hidden":true,"merged":[]}
["CZĘŚĆ A"]
["WERYFIKACJA KRYTERIÓW FORMALNYCH"]
["A1"]
["TAK"]
["NIE – odrzucić wniosek"]
["Wybierz"]
[]
["A2"]
["TAK"]
["NIE DOTYCZY"]
["NIE – odrzucić wniosek"]
["Wybierz"]
[]
["A3"]
["TAK"]
["NIE DOTYCZY"]
["NIE – odrzucić wniosek"]
["Wybierz"]
[]
["A4"]
["TAK"]
["NIE – odrzucić wniosek"]
["Wybierz"]
[]
["A5"]
["TAK"]
["NIE DOTYCZY"]
["NIE – odrzucić wniosek"]
["Wybierz"]
[]
["A6"]
["TAK"]
["NIE – odrzucić wniosek"]
["Wybierz"]
[]
["A7"]
["TAK"]
["NIE – odrzucić wniosek"]
["Wybierz"]
[]
[]
["CZĘŚĆ B"]
["WERYFIKACJA KRYTERIÓW SPECYFICZNYCH OBLIGATORYJNYCH"]
["B1"]
["TAK"]
["NIE – odrzucić wniosek"]
["Wybierz"]
[]
["B2"]
["TAK"]
["NIE – odrzucić wniosek"]
["Wybierz"]
[]
["B3"]
["TAK"]
["NIE – odrzucić wniosek"]
["Wybierz"]
[]
["B4"]
["TAK"]
["NIE – odrzucić wniosek"]
["Wybierz"]
[]
["B5"]
["TAK"]
["NIE – odrzucić wniosek"]
["Wybierz"]
[]
["B6"]
["TAK"]
["NIE – odrzucić wniosek"]
["Wybierz"]
[]
["B7"]
["TAK"]
["NIE – odrzucić wniosek"]
["Wybierz"]
[]
["Czy projekt spełnia…"]
["TAK – wypełnić część C"]
["NIE – odrzucić wniosek. WNIOSEK NIE PODLEGA DALSZEJ OCENIE"]
["Wybierz"]
[]
[]
["CZĘŚĆ C"]
["WERYFIKACJA KRYTERIÓW MERYTORYCZNYCH ZEROJEDYNKOWYCH"]
["C1"]
["TAK"]
["NIE – odrzucić wniosek"]
["Wybierz"]
[]
["C2"]
["TAK"]
["NIE DOTYCZY"]
["NIE – skierować wniosek do negocjacji (przypis nr 3)"]
["NIE – odrzucić wniosek"]
["Wybierz"]
[]
["C3"]
["TAK"]
["NIE DOTYCZY"]
["NIE – skierować wniosek do negocjacji (przypis nr 3)"]
["NIE – odrzucić wniosek"]
["Wybierz"]
[]
["C4"]
["TAK"]
["NIE – skierować wniosek do negocjacji (przypis nr 3)"]
["NIE – odrzucić wniosek"]
["Wybierz"]
[]
["C5"]
["TAK"]
["NIE DOTYCZY"]
["NIE – skierować wniosek do negocjacji (przypis nr 3)"]
["NIE – odrzucić wniosek"]
["Wybierz"]
[]
["C6.1"]
["0 pkt"]
["1 pkt"]
["Wybierz"]
[]
["C6.2"]
["0 pkt"]
["1 pkt"]
["2 pkt"]
["Wybierz"]
[]
["C6.3"]
["0 pkt"]
["1 pkt"]
["2 pkt"]
["Wybierz"]
[]
["C6.4"]
["0 pkt"]
["1 pkt"]
["2 pkt"]
["Wybierz"]
[]
["C6.5"]
["0 pkt"]
["1 pkt"]
["Wybierz"]
[]
["C6.Wyjątek"]
["TAK"]
["NIE"]
["Wybierz"]
[]
["C6.Ogółem"]
["TAK"]
["NIE – odrzucić wniosek"]
["Wybierz"]
[]
["C7"]
["TAK"]
["NIE – odrzucić wniosek"]
["Wybierz"]
[]
["C8"]
["TAK"]
["NIE – odrzucić wniosek"]
["Wybierz"]
[]
["C9"]
["TAK"]
["NIE – skierować wniosek do negocjacji (przypis nr 3)"]
["NIE – odrzucić wniosek"]
["Wybierz"]
[]
["C10"]
["TAK"]
["NIE – skierować wniosek do negocjacji (przypis nr 3)"]
["NIE – odrzucić wniosek"]
["Wybierz"]
[]
["C11"]
["TAK"]
["NIE DOTYCZY"]
["NIE – odrzucić wniosek"]
["Wybierz"]
[]
["Czy projekt spełnia…"]
["TAK – wypełnić część D"]
["TAK – warunkowo wypełnić część D"]
["NIE – odrzucić wniosek. WNIOSEK NIE PODLEGA DALSZEJ OCENIE"]
["Wybierz"]
[]
[]
["CZĘŚĆ D"]
["D1 Czy jest analiza ryzyka"]
["TAK"]
["NIE"]
["Wybierz"]
["D1","Z ryzykiem","Bez ryzyka"]
["a)",3,"Wariant niedostępny"]
["b)",2,"Wariant niedostępny"]
["c)",5,"Wariant niedostępny"]
["d)",10,"Wariant niedostępny"]
[]
["D2 Czy jest analiza ryzyka"]
["TAK"]
["NIE"]
["Wybierz"]
["D2","Z ryzykiem","Bez ryzyka"]
["a)",2,"Wariant niedostępny"]
["b)",5,"Wariant niedostępny"]
["c)",3,"Wariant niedostępny"]
[]
["D4 Warianty",null,null,null,null,null,null,null,null,null,null,null,"D4 Warianty"]
["I. WND bez partnerstwa, trwałości rezultatów projektu, kwot ryczałtowych",null,null,null,null,null,null,null,null,null,null,null,"I. WND bez partnerstwa, trwałości rezultatów projektu, kwot ryczałtowych"]
["II. WND z partnerstwem",null,null,null,null,null,null,null,null,null,null,null,"II. WND z partnerstwem"]
["III. WND z kwotami ryczałtowymi",null,null,null,null,null,null,null,null,null,null,null,"III. WND z trwałością rezultatów projektu"]
["IV. WND z partnerstwem, kwotami ryczałtowymi",null,null,null,null,null,null,null,null,null,null,null,"IV. WND z kwotami ryczałtowymi"]
["Wybierz",null,null,null,null,null,null,null,null,null,null,null,"V. WND z partnerstwem, trwałością rezultatów projektu, kwotami ryczałtowymi"]
[null,null,null,null,null,null,null,null,null,null,null,null,"VI. WND z partnerstwem, trwałością rezultatów projektu"]
[null,null,null,null,null,null,null,null,null,null,null,null,"VII. WND z partnerstwem, kwotami ryczałtowymi"]
[null,null,null,null,null,null,null,null,null,null,null,null,"VIII. WND z trwałością rezultatów projektu, kwotami ryczałtowymi"]
[null,null,null,null,null,null,null,null,null,null,null,null,"Wybierz"]
["D4","I","II","III","IV",null,null,null,null,null,null,null,"D4","I","II","III","IV","V","VI","VII","VIII"]
["a)",19,13,15,12,null,null,null,null,null,null,null,"a)",19,13,"Wariant niedostępny",15,"Wariant niedostępny","Wariant niedostępny",12,"Wariant niedostępny",null,null,"=JEŻELI(A31=1;Combo!B222;JEŻELI(A31=2;Combo!C222;JEŻELI(A31=3;Combo!D222;JEŻELI(A31=4;Combo!E222;JEŻELI(A31=5;Combo!F222;JEŻELI(A31=6;Combo!G222;JEŻELI(A31=7;Combo!H222;JEŻELI(A31=8;Combo!I222;\"Wybierz powyżej\"))))))))","=JEŻELI(A31=1;Combo!B223;JEŻELI(A31=2;Combo!C223;JEŻELI(A31=3;Combo!D223;JEŻELI(A31=4;Combo!E223;JEŻELI(A31=5;Combo!F223;JEŻELI(A31=6;Combo!G223;JEŻELI(A31=7;Combo!H223;JEŻELI(A31=8;Combo!I223;\"Wybierz powyżej\"))))))))"]
["b)",1,1,1,1,null,null,null,null,null,null,null,"b)",1,1,"Wariant niedostępny",1,"Wariant niedostępny","Wariant niedostępny",1,"Wariant niedostępny",null,null,"=JEŻELI(A31=1;Combo!B222;JEŻELI(A31=2;Combo!C222;JEŻELI(A31=3;Combo!D222;JEŻELI(A31=4;Combo!E222;JEŻELI(A31=5;Combo!F222;JEŻELI(A31=6;Combo!G222;JEŻELI(A31=7;Combo!H222;JEŻELI(A31=8;Combo!I222;\"Wybierz powyżej\"))))))))","=JEŻELI(A31=1;Combo!B224;JEŻELI(A31=2;Combo!C224;JEŻELI(A31=3;Combo!D224;JEŻELI(A31=4;Combo!E224;JEŻELI(A31=5;Combo!F224;JEŻELI(A31=6;Combo!G224;JEŻELI(A31=7;Combo!H224;JEŻELI(A31=8;Combo!I224;\"Wybierz powyżej\"))))))))"]
["c)","Nd",6,"Nd",4,null,null,null,null,null,null,null,"c)","Nd",6,"Wariant niedostępny","Nd","Wariant niedostępny","Wariant niedostępny",4,"Wariant niedostępny",null,null,"=JEŻELI(A31=1;Combo!B222;JEŻELI(A31=2;Combo!C222;JEŻELI(A31=3;Combo!D222;JEŻELI(A31=4;Combo!E222;JEŻELI(A31=5;Combo!F222;JEŻELI(A31=6;Combo!G222;JEŻELI(A31=7;Combo!H222;JEŻELI(A31=8;Combo!I222;\"Wybierz powyżej\"))))))))","=JEŻELI(A31=1;Combo!B225;JEŻELI(A31=2;Combo!C225;JEŻELI(A31=3;Combo!D225;JEŻELI(A31=4;Combo!E225;JEŻELI(A31=5;Combo!F225;JEŻELI(A31=6;Combo!G225;JEŻELI(A31=7;Combo!H225;JEŻELI(A31=8;Combo!I225;\"Wybierz powyżej\"))))))))"]
["d)","Nd","Nd","Nd","Nd",null,null,null,null,null,null,null,"d)","Nd","Nd","Wariant niedostępny","Nd","Wariant niedostępny","Wariant niedostępny","Nd","Wariant niedostępny",null,null,"=JEŻELI(A31=1;Combo!B222;JEŻELI(A31=2;Combo!C222;JEŻELI(A31=3;Combo!D222;JEŻELI(A31=4;Combo!E222;JEŻELI(A31=5;Combo!F222;JEŻELI(A31=6;Combo!G222;JEŻELI(A31=7;Combo!H222;JEŻELI(A31=8;Combo!I222;\"Wybierz powyżej\"))))))))","=JEŻELI(A31=1;Combo!B226;JEŻELI(A31=2;Combo!C226;JEŻELI(A31=3;Combo!D226;JEŻELI(A31=4;Combo!E226;JEŻELI(A31=5;Combo!F226;JEŻELI(A31=6;Combo!G226;JEŻELI(A31=7;Combo!H226;JEŻELI(A31=8;Combo!I226;\"Wybierz powyżej\"))))))))"]
["e)","Nd","Nd",4,3,null,null,null,null,null,null,null,"e)","Nd","Nd","Wariant niedostępny",4,"Wariant niedostępny","Wariant niedostępny",3,"Wariant niedostępny",null,null,"=JEŻELI(A31=1;Combo!B222;JEŻELI(A31=2;Combo!C222;JEŻELI(A31=3;Combo!D222;JEŻELI(A31=4;Combo!E222;JEŻELI(A31=5;Combo!F222;JEŻELI(A31=6;Combo!G222;JEŻELI(A31=7;Combo!H222;JEŻELI(A31=8;Combo!I222;\"Wybierz powyżej\"))))))))","=JEŻELI(A31=1;Combo!B227;JEŻELI(A31=2;Combo!C227;JEŻELI(A31=3;Combo!D227;JEŻELI(A31=4;Combo!E227;JEŻELI(A31=5;Combo!F227;JEŻELI(A31=6;Combo!G227;JEŻELI(A31=7;Combo!H227;JEŻELI(A31=8;Combo!I227;\"Wybierz powyżej\"))))))))"]
[]
["D5 Warianty"]
["I. WND z kadrą zewnętrzną"]
["II. WND bez kadry zewnętrznej"]
["Wybierz"]
["D5","I","II"]
["a)",1,1]
["b)",4,5]
["c)",3,3]
["d)",1,"Nd"]
["e)",1,1]
[]
["D.PODSUMOWANIE"]
["TAK – wypełnić część E"]
["NIE – odrzucić wniosek"]
["Wybierz"]
[]
[]
["CZĘŚĆ E"]
["TAK"]
["NIE"]
["Wybierz"]
[]
[]
["CZĘŚĆ F"]
["TAK"]
["NIE DOTYCZY"]
["NIE – odrzucić wniosek"]
["Wybierz"]
[]
[]
["Do zapisu PDF"]
[{"$f":"CONCATENATE(MID(Str_tytułowa!B16,6,5),\"_\",MID(Str_tytułowa!B16,18,4))","v":"10.06_xxxx"}]